fUST/lending_fUST_20250305
["ID","MTS","AMOUNT","RATE_DAILY","PERIOD"]
[355450434,1741177845002,-637.26,0.00038356,9]
[355450435,1741177845012,-5083.56,0.00038356,9]
[355450436,1741177845028,-313.65833962,0.00038356,9]
[355450437,1741177845038,-985.09,0.00038356,9]
[355450438,1741177845049,-500.0,0.00038356,9]
[355450439,1741177845065,-500.0,0.00038356,9]
[355450440,1741177845086,-500.0,0.00038356,9]
[355450441,1741177845097,-500.0,0.00038356,9]
[355450442,1741177845109,-500.0,0.00038356,9]
[355450443,1741177845120,-5079.79,0.00038356,9]
[355450444,1741177845130,-512.75285568,0.00038356,9]
[355450445,1741177845141,-10565.5,0.00038356,5]
[355450446,1741177845151,-500.0,0.00038356,9]
[355450447,1741177845164,-813.64,0.00038356,9]
[355450448,1741177845179,-500.0,0.00038356,9]
[355450449,1741177845190,-500.0,0.00038356,9]
[355450450,1741177845200,-1036.37,0.00038356,9]
[355450451,1741177845211,-500.0,0.00038356,9]
[355450452,1741177845222,-500.0,0.00038356,9]
[355450453,1741177845233,-500.0,0.00038356,9]
[355450454,1741177845243,-500.0,0.00038356,9]
[355450455,1741177845255,-1654.33,0.00038356,9]
[355450456,1741177845270,-4016.9,0.00038356,9]
[355450457,1741177845284,-1966.36,0.00038356,9]
[355450458,1741177845295,-1211.22,0.00038356,9]
[355450459,1741177845306,-454.30171012,0.00038356,9]
[355450460,1741177845318,-500.0,0.00038356,9]
[355450461,1741177845330,-500.0,0.00038356,9]
[355450462,1741177845341,-500.0,0.00038356,9]
[355450463,1741177845352,-500.0,0.00038356,9]
[355450464,1741177845363,-500.0,0.00038356,9]
[355450465,1741177845374,-500.0,0.00038356,9]
[355450467,1741177845384,-754.72,0.00038356,9]
[355450468,1741177845395,-500.0,0.00038356,9]
[355450469,1741177845405,-500.0,0.00038356,9]
[355450470,1741177845416,-3462.66,0.00038356,9]
[355450471,1741177845426,-1090.14,0.00038356,9]
[355450472,1741177845437,-500.0,0.00038356,9]
[355450473,1741177845447,-500.0,0.00038356,9]
[355450474,1741177845457,-580.7,0.00038356,9]
[355450475,1741177845466,-500.0,0.00038356,9]
[355450476,1741177845476,-500.0,0.00038356,9]
[355450477,1741177845485,-500.0,0.00038356,9]
[355450478,1741177845495,-500.0,0.00038356,9]
[355450479,1741177845504,-1368.75,0.00038356,9]
[355450480,1741177845514,-500.0,0.00038356,9]
[355450481,1741177845529,-500.0,0.00038356,9]
[355450482,1741177845539,-518.17098443,0.00038356,9]
[355450483,1741177845549,-500.0,0.00038356,9]
[355450484,1741177845559,-500.0,0.00038356,9]
[355450485,1741177845569,-1373.01,0.00038356,9]
[355450486,1741177845579,-538.6,0.00038356,9]
[355450487,1741177845588,-1395.57,0.00038356,9]
[355450488,1741177845597,-5365.73,0.00038356,9]
[355450489,1741177845607,-500.0,0.00038356,9]
[355450490,1741177845617,-5756.91,0.00038356,9]
[355450491,1741177845627,-500.0,0.00038356,9]
[355450492,1741177845636,-733.58,0.00038356,9]
[355450493,1741177845646,-843.61,0.00038356,9]
[355450494,1741177845656,-500.0,0.00038356,9]
[355450495,1741177845666,-500.0,0.00038356,9]
[355450496,1741177845676,-500.0,0.00038356,9]
[355450497,1741177845686,-500.0,0.00038356,9]
[355450498,1741177845990,-500.0,0.00038356,9]
[355450499,1741177846007,-500.0,0.00038356,9]
[355450500,1741177846023,-500.0,0.00038356,9]
[355450501,1741177846033,-523.85,0.00038356,9]
[355450502,1741177846043,-500.0,0.00038356,9]
[355450503,1741177846052,-7041.21,0.00038356,9]
[355450504,1741177846062,-500.0,0.00038356,9]
[355450505,1741177846072,-500.0,0.00038356,9]
[355450506,1741177846081,-500.0,0.00038356,9]
[355450507,1741177846091,-500.0,0.00038356,9]
[355450508,1741177846101,-500.0,0.00038356,9]
[355450509,1741177846111,-1778.89,0.00038356,9]
[355450510,1741177846120,-500.0,0.00038356,9]
[355450511,1741177846129,-416.66666667,0.00038356,7]
[355450512,1741177846139,-500.0,0.00038356,9]
[355450513,1741177846149,-1518.73,0.00038356,9]
[355450514,1741177846158,-500.0,0.00038356,9]
[355450515,1741177846168,-500.0,0.00038356,9]
[355450516,1741177846177,-500.0,0.00038356,9]
[355450517,1741177846187,-500.0,0.00038356,9]
[355450518,1741177846197,-3949.17,0.00038356,9]
[355450520,1741177846206,-3650.74,0.00038356,9]
[355450522,1741177846216,-500.0,0.00038356,9]
[355450524,1741177846225,-150.39,0.00038356,30]
[355450526,1741177846236,-500.0,0.00038356,9]
[355450527,1741177846245,-500.0,0.00038356,9]
[355450528,1741177846255,-500.0,0.00038356,9]
[355450529,1741177846264,-500.0,0.00038356,9]
[355450530,1741177846277,-6042.31,0.00038356,9]
[355450531,1741177846287,-500.0,0.00038356,9]
[355450532,1741177846296,-500.0,0.00038356,9]
[355450533,1741177846306,-580.83,0.00038356,9]
[355450534,1741177846315,-500.0,0.00038356,9]
[355450535,1741177846325,-500.0,0.00038356,9]
[355450536,1741177846335,-500.0,0.00038373,5]
[355450537,1741177846345,-349.02122353,0.00038373,5]
[355450538,1741177846354,-535.57704745,0.00038373,5]
[355450539,1741177846364,-502.50857481,0.00038373,5]
[355450540,1741177846376,-500.0,0.00038373,5]
[355450541,1741177846387,-500.0,0.00038373,5]
[355450542,1741177846396,-500.0,0.00038373,5]
[355450543,1741177846407,-270.01662706,0.00038373,5]
[355450544,1741177846417,-500.0,0.00038373,5]
[355450545,1741177846427,-5000.0,0.000385,30]
[355450546,1741177846436,-3000.0,0.0003853,2]
[355450547,1741177846445,-500.0,0.0003863,9]
[355450548,1741177846455,-500.0,0.0003863,9]
[355450549,1741177846465,-500.0,0.0003863,9]
[355450550,1741177846474,-524.88,0.0003863,9]
[355450551,1741177846484,-500.0,0.0003863,9]
[355450552,1741177846493,-531.92,0.0003863,9]
[355450553,1741177846502,-500.0,0.0003863,9]
[355450554,1741177846511,-500.0,0.0003863,9]
[355450555,1741177846523,-500.0,0.0003863,9]
[355450556,1741177846532,-502.8044999,0.0003863,9]
[355450557,1741177846542,-434.46138596,0.0003863,9]
[355450558,1741177846552,-500.0,0.0003863,9]
[355450559,1741177846561,-586.97732737,0.0003863,9]
[355450560,1741177846570,-500.0,0.0003863,9]
[355450561,1741177846579,-528.07,0.0003863,9]
[355450562,1741177846588,-500.0,0.0003863,9]
[355450563,1741177846598,-500.0,0.0003863,9]
[355450564,1741177846607,-500.0,0.0003863,9]
[355450565,1741177846617,-500.0,0.0003863,9]
[355450566,1741177846626,-546.16791124,0.0003863,9]
[355450567,1741177846636,-500.0,0.0003863,9]
[355450568,1741177846645,-500.0,0.0003863,9]
[355450569,1741177846656,-500.0,0.0003863,9]
[355450570,1741177846667,-500.0,0.0003863,9]
[355450571,1741177846677,-500.0,0.0003863,9]
[355450572,1741177846687,-520.75,0.0003863,9]
[355450573,1741177846697,-500.0,0.0003863,9]
[355450574,1741177846707,-500.0,0.0003863,9]
[355450575,1741177846717,-500.0,0.0003863,9]
[355450576,1741177846728,-500.0,0.0003863,9]
[355450577,1741177846737,-500.0,0.0003863,9]
[355450578,1741177846748,-500.0,0.0003863,9]
[355450579,1741177846758,-500.0,0.0003863,9]
[355450580,1741177846773,-500.0,0.0003863,9]
[355450581,1741177846786,-500.0,0.0003863,9]
[355450582,1741177846795,-500.0,0.0003863,9]
[355450583,1741177846804,-500.0,0.0003863,9]
[355450584,1741177846815,-500.0,0.0003863,9]
[355450585,1741177846825,-500.0,0.0003863,9]
[355450586,1741177846835,-1822.92,0.0003863,5]
[355450587,1741177846845,-500.0,0.0003863,9]
[355450588,1741177846856,-500.0,0.0003863,9]
[355450589,1741177846866,-523.60724526,0.0003863,9]
[355450590,1741177846876,-500.0,0.0003863,9]
[355450591,1741177846885,-625.13979299,0.0003863,9]
[355450592,1741177846896,-500.0,0.0003863,9]
[355450593,1741177846906,-500.0,0.0003863,9]
[355450594,1741177846918,-500.0,0.0003863,9]
[355450595,1741177846928,-500.0,0.0003863,9]
[355450596,1741177846939,-500.0,0.0003863,9]
[355450597,1741177846950,-500.0,0.0003863,9]
[355450598,1741177846959,-500.0,0.0003863,9]
[355450599,1741177846969,-530.94,0.0003863,9]
[355450600,1741177846979,-500.0,0.0003863,9]
[355450601,1741177846990,-500.0,0.0003863,9]
[355450602,1741177847001,-500.0,0.0003863,9]
[355450603,1741177847010,-500.0,0.0003863,9]
[355450604,1741177847022,-500.0,0.0003863,9]
[355450605,1741177847033,-500.0,0.0003863,9]
[355450606,1741177847043,-500.0,0.0003863,9]
[355450607,1741177847053,-500.0,0.0003863,9]
[355450608,1741177847062,-500.0,0.0003863,9]
[355450609,1741177847073,-500.0,0.0003863,9]
[355450610,1741177847084,-563.84533485,0.0003863,9]
[355450611,1741177847094,-500.0,0.0003863,9]
[355450612,1741177847103,-500.0,0.0003863,9]
[355450613,1741177847113,-500.0,0.0003863,9]
[355450614,1741177847123,-500.0,0.0003863,9]
[355450615,1741177847132,-500.0,0.0003863,9]
[355450616,1741177847142,-500.0,0.0003863,9]
[355450617,1741177847152,-510.56595358,0.0003863,9]
[355450618,1741177847162,-815.59,0.0003863,9]
[355450619,1741177847172,-500.0,0.0003863,9]
[355450620,1741177847182,-1000.0,0.0003863,88]
[355450621,1741177847192,-1297.05,0.0003863,9]
[355450622,1741177847203,-500.0,0.0003863,9]
[355450623,1741177847214,-647.32,0.0003863,9]
[355450624,1741177847225,-548.38,0.0003863,9]
[355450625,1741177847234,-500.0,0.0003863,9]
[355450626,1741177847244,-500.0,0.0003863,9]
[355450627,1741177847254,-500.0,0.0003863,9]
[355450628,1741177847264,-500.0,0.0003863,9]
[355450629,1741177847276,-500.0,0.0003863,9]
[355450630,1741177847286,-500.0,0.0003863,9]
[355450631,1741177847295,-556.64,0.0003863,9]
[355450632,1741177847304,-500.0,0.0003863,9]
[355450633,1741177847313,-500.0,0.0003863,9]
[355450634,1741177847323,-500.0,0.0003863,9]
[355450635,1741177847333,-500.0,0.0003863,9]
[355450636,1741177847342,-500.0,0.0003863,9]
[355450637,1741177847352,-575.17,0.0003863,9]
[355450638,1741177847362,-500.0,0.0003863,9]
[355450639,1741177847371,-500.0,0.0003863,9]
[355450640,1741177847381,-500.0,0.0003863,9]
[355450641,1741177847390,-500.0,0.0003863,9]
[355450642,1741177847400,-500.0,0.0003863,9]
[355450643,1741177847410,-799.53,0.0003863,9]
[355450644,1741177847420,-987.69,0.0003863,9]
[355450645,1741177847429,-500.0,0.0003863,9]
[355450646,1741177847439,-500.0,0.0003863,9]
[355450647,1741177847448,-500.0,0.0003863,9]
[355450648,1741177847458,-500.0,0.0003863,9]
[355450649,1741177847467,-968.68,0.0003863,9]
[355450650,1741177847476,-500.0,0.0003863,9]
[355450651,1741177847486,-500.0,0.0003863,9]
[355450652,1741177847495,-500.0,0.0003863,9]
[355450653,1741177847504,-500.0,0.0003863,9]
[355450654,1741177847513,-500.0,0.0003863,9]
[355450655,1741177847524,-500.0,0.0003863,9]
[355450656,1741177847534,-500.0,0.0003863,9]
[355450657,1741177847543,-500.0,0.0003863,9]
[355450658,1741177847553,-500.0,0.0003863,9]
[355450659,1741177847562,-500.0,0.0003863,9]
[355450660,1741177847571,-500.0,0.0003863,9]
[355450661,1741177847581,-779.76,0.0003863,9]
[355450662,1741177847592,-500.0,0.0003863,9]
[355450663,1741177847602,-776.09,0.0003863,9]
[355450664,1741177847612,-500.0,0.0003863,9]
[355450665,1741177847621,-500.0,0.0003863,9]
[355450666,1741177847631,-500.0,0.0003863,9]
[355450667,1741177847641,-500.0,0.0003863,9]
[355450668,1741177847650,-500.0,0.0003863,9]
[355450669,1741177847659,-369.23038187,0.0003863,9]
[355450670,1741177847669,-525.79,0.0003863,9]
[355450671,1741177847679,-500.0,0.0003863,9]
[355450672,1741177847689,-506.35,0.0003863,9]
[355450673,1741177847698,-500.0,0.0003863,9]
[355450674,1741177847707,-500.0,0.0003863,9]
[355450675,1741177847716,-500.0,0.0003863,9]
[355450676,1741177847726,-779.1,0.0003863,9]
[355450677,1741177847735,-500.0,0.0003863,9]
[355450678,1741177847745,-500.0,0.0003863,9]
[355450679,1741177847755,-500.0,0.0003863,9]
[355450680,1741177847768,-500.0,0.0003863,9]
[355450681,1741177847778,-500.0,0.0003863,9]
[355450682,1741177847788,-500.0,0.0003863,9]
[355450683,1741177847798,-500.0,0.0003863,9]
[355450684,1741177847808,-500.0,0.0003863,9]
[355450685,1741177847818,-500.0,0.0003863,9]
[355450686,1741177847828,-500.0,0.0003863,9]
[355450687,1741177847838,-1121.42,0.0003863,9]
[355450688,1741177847848,-500.0,0.0003863,9]
[355450689,1741177847860,-520.84389084,0.0003863,9]
[355450690,1741177847871,-500.0,0.0003863,9]
[355450691,1741177847880,-500.0,0.0003863,9]
[355450692,1741177847889,-500.0,0.0003863,9]
[355450693,1741177847899,-500.0,0.0003863,9]
[355450694,1741177847908,-500.0,0.0003863,9]
[355450695,1741177847918,-500.0,0.0003863,9]
[355450696,1741177847928,-500.0,0.0003863,9]
[355450697,1741177847937,-500.0,0.0003863,9]
[355450698,1741177847946,-500.0,0.0003863,9]
[355450699,1741177847957,-500.0,0.0003863,9]
[355450700,1741177847968,-1319.51,0.0003863,9]
[355450701,1741177847977,-500.0,0.0003863,9]
[355450702,1741177847987,-500.0,0.0003863,9]
[355450703,1741177847996,-500.0,0.0003863,9]
[355450704,1741177848005,-1114.59,0.0003863,9]
[355450705,1741177848015,-500.0,0.0003863,9]
[355450706,1741177848026,-500.0,0.0003863,9]
[355450707,1741177848036,-1140.43,0.0003863,9]
[355450708,1741177848045,-500.0,0.0003863,9]
[355450709,1741177848055,-325.76660552,0.0003863,9]
[355450710,1741177848064,-500.0,0.0003863,9]
[355450711,1741177848074,-2142.63,0.0003863,9]
[355450712,1741177848084,-500.0,0.0003863,9]
[355450713,1741177848093,-500.0,0.0003863,9]
[355450714,1741177848103,-500.0,0.0003863,9]
[355450715,1741177848113,-500.0,0.0003863,9]
[355450716,1741177848122,-500.0,0.0003863,9]
[355450717,1741177848132,-500.0,0.0003863,9]
[355450718,1741177848142,-1799.71,0.0003863,9]
[355450719,1741177848151,-534.47,0.0003863,9]
[355450720,1741177848161,-500.0,0.0003863,9]
[355450721,1741177848170,-592.25,0.0003863,9]
[355450722,1741177848179,-500.0,0.0003863,9]
[355450723,1741177848189,-500.0,0.0003863,9]
[355450724,1741177848199,-500.0,0.0003863,9]
[355450725,1741177848209,-500.0,0.0003863,9]
[355450726,1741177848218,-500.0,0.0003863,9]
[355450727,1741177848228,-8466.84,0.0003863,9]
[355450728,1741177848238,-500.0,0.0003863,9]
[355450729,1741177848247,-679.8,0.0003863,9]
[355450730,1741177848257,-500.0,0.0003863,9]
[355450731,1741177848268,-2356.24,0.0003863,9]
[355450732,1741177848278,-500.0,0.0003863,9]
[355450733,1741177848288,-500.0,0.0003863,9]
[355450734,1741177848297,-500.0,0.0003863,9]
[355450735,1741177848308,-811.13,0.0003863,9]
[355450736,1741177848319,-500.0,0.0003863,9]
[355450737,1741177848329,-1417.28,0.0003863,9]
[355450738,1741177848339,-531.95,0.0003863,9]
[355450739,1741177848349,-500.0,0.0003863,9]
[355450740,1741177848360,-10734.38,0.0003863,9]
[355450741,1741177848369,-500.0,0.0003863,9]
[355450742,1741177848380,-1644.69,0.0003863,9]
[355450743,1741177848389,-1234.99,0.0003863,9]
[355450744,1741177848399,-500.0,0.0003863,9]
[355450745,1741177848409,-500.0,0.0003863,9]
[355450746,1741177848419,-500.0,0.0003863,9]
[355450747,1741177848429,-1296.05,0.0003863,9]
[355450748,1741177848439,-500.0,0.0003863,9]
[355450749,1741177848448,-500.0,0.0003863,9]
[355450750,1741177848458,-500.0,0.0003863,9]
[355450751,1741177848468,-548.23,0.0003863,9]
[355450752,1741177848478,-853.12,0.0003863,9]
[355450753,1741177848488,-500.0,0.0003863,9]
[355450754,1741177848497,-1961.58,0.0003863,9]
[355450755,1741177848507,-663.07,0.0003863,9]
[355450756,1741177848517,-500.0,0.0003863,9]
[355450757,1741177848527,-509.17094978,0.0003863,9]
[355450758,1741177848537,-500.0,0.0003863,9]
[355450759,1741177848547,-500.0,0.0003863,9]
[355450760,1741177848556,-731.35,0.0003863,9]
[355450761,1741177848566,-500.0,0.0003863,9]
[355450762,1741177848576,-500.0,0.0003863,9]
[355450763,1741177848586,-500.0,0.0003863,9]
[355450764,1741177848595,-500.0,0.0003863,9]
[355450765,1741177848605,-500.0,0.0003863,9]
[355450766,1741177848615,-1095.2,0.0003863,9]
[355450767,1741177848625,-1144.95,0.0003863,9]
[355450768,1741177848635,-500.0,0.0003863,9]
[355450769,1741177848644,-500.0,0.0003863,9]
[355450770,1741177848654,-500.0,0.0003863,9]
[355450771,1741177848664,-500.0,0.0003863,9]
[355450772,1741177848674,-500.0,0.0003863,9]
[355450773,1741177848684,-500.0,0.0003863,9]
[355450774,1741177848693,-500.0,0.0003863,9]
[355450775,1741177848703,-2267.15080396,0.0003863,7]
[355450776,1741177849154,-261.56126759,0.00038356,9]
[355450777,1741177849328,-238.43873241,0.00038356,9]
[355450778,1741177849338,-204.89836171,0.00038356,30]
[355450779,1741177849348,-544.59825588,0.0003863,7]
[355450780,1741177849360,-45185.63093781,0.0003863,7]
[355450801,1741178797150,-1000.0,0.00019178,30]
[355450802,1741178797173,-906.17241805,0.00020548,30]
[355450878,1741178945104,-593.82758195,0.00020548,30]
[355450880,1741178945127,-403.61769205,0.00028,3]
[355450918,1741179036000,-283.27290304,0.000259,2]
[355450919,1741179036011,-13.04897462,0.00028,3]
[355450920,1741179036020,-253.67812234,0.00028,3]
[355450921,1741179036115,-162.98854433,0.00028,3]
[355450922,1741179036124,-283.27290304,0.000309,2]
[355450923,1741179036133,-166.855685,0.00034624,2]
[355450924,1741179036143,-171.837568,0.0003528,4]
[355450925,1741179036152,-18839.7811339,0.00035306,2]
[355450926,1741179036162,-500.0,0.0003589,2]
[355450927,1741179036175,-283.27290304,0.000359,2]
[355450928,1741179036184,-614.66762252,0.000362,98]
[355450930,1741179036193,-614.66762248,0.00036818,101]
[355450931,1741179036203,-416.66666667,0.00036978,2]
[355450932,1741179036214,-614.66762248,0.00037845,107]
[355450933,1741179036223,-31563.30489314,0.00038,30]
[355450934,1741179036242,-168436.69510686,0.00038,30]
[355450935,1741179036253,-200000.0,0.00038,30]
[355450936,1741179036262,-2000.0,0.00038,2]
[355450937,1741179036274,-547.0,0.00038,30]
[355450938,1741179036284,-1367.38828662,0.00038211,60]
[355450939,1741179036295,-156.05462532,0.00038255,2]
[355450940,1741179036304,-219.55720741,0.00038256,2]
[355450941,1741179036315,-1500.0,0.00038311,45]
[355450942,1741179036325,-432.48,0.00038346,3]
[355450943,1741179036335,-186.67120626,0.00038355,15]
[355450944,1741179036344,-318.41636106,0.00038355,2]
[355450945,1741179036353,-747.62,0.00038356,9]
[355450946,1741179036363,-525.97508585,0.00038356,9]
[355450947,1741179036372,-500.0,0.00038356,9]
[355450948,1741179036381,-500.0,0.00038356,9]
[355450949,1741179036391,-409.80584058,0.00038356,9]
[355450950,1741179036400,-500.0,0.00038356,9]
[355450951,1741179036409,-887.95,0.00038356,9]
[355450952,1741179036419,-500.0,0.00038356,9]
[355450953,1741179036429,-500.0,0.00038356,9]
[355450954,1741179036438,-500.0,0.00038356,9]
[355450955,1741179036447,-500.0,0.00038356,9]
[355450956,1741179036457,-500.0,0.00038356,9]
[355450957,1741179036466,-500.0,0.00038356,9]
[355450958,1741179036477,-500.0,0.00038356,9]
[355450959,1741179036486,-500.0,0.00038356,9]
[355450960,1741179036496,-510.25,0.00038356,9]
[355450961,1741179036505,-500.0,0.00038356,9]
[355450962,1741179036515,-500.0,0.00038356,9]
[355450963,1741179036524,-527.24,0.00038356,9]
[355450964,1741179036534,-500.0,0.00038356,9]
[355450965,1741179036544,-500.0,0.00038356,9]
[355450966,1741179036553,-500.0,0.00038356,9]
[355450967,1741179036563,-500.0,0.00038356,9]
[355450968,1741179036575,-500.0,0.00038356,9]
[355450969,1741179036585,-500.0,0.00038356,9]
[355450970,1741179036594,-500.0,0.00038356,9]
[355450971,1741179036604,-500.0,0.00038356,9]
[355450972,1741179036614,-524.72741128,0.00038356,9]
[355450973,1741179036623,-506.20107156,0.00038356,9]
[355450974,1741179036633,-500.0,0.00038356,9]
[355450975,1741179036643,-640.31774019,0.00038356,9]
[355450976,1741179036652,-239.16465581,0.00038356,9]
[355450977,1741179036663,-500.0,0.00038356,9]
[355450978,1741179036672,-500.0,0.00038356,9]
[355450979,1741179036683,-500.0,0.00038356,9]
[355450980,1741179036693,-500.0,0.00038356,9]
[355450981,1741179036703,-500.0,0.00038356,9]
[355450982,1741179036712,-500.0,0.00038356,9]
[355450983,1741179036722,-500.0,0.00038356,9]
[355450984,1741179036731,-500.0,0.00038356,9]
[355450985,1741179036740,-500.0,0.00038356,9]
[355450986,1741179036750,-500.0,0.00038356,9]
[355450987,1741179036759,-500.0,0.00038356,9]
[355450988,1741179036769,-500.0,0.00038356,9]
[355450989,1741179036778,-500.0,0.00038356,9]
[355450990,1741179036788,-500.0,0.00038356,9]
[355450991,1741179036798,-500.0,0.00038356,9]
[355450992,1741179036807,-500.0,0.00038356,9]
[355450993,1741179036821,-500.0,0.00038356,9]
[355450994,1741179036830,-500.0,0.00038356,9]
[355450995,1741179036839,-500.0,0.00038356,9]
[355450996,1741179036849,-500.0,0.00038356,9]
[355450997,1741179036859,-462.10610282,0.00038356,9]
[355450998,1741179036869,-500.0,0.00038356,9]
[355450999,1741179036878,-500.0,0.00038356,9]
[355451000,1741179036887,-500.0,0.00038356,9]
[355451001,1741179036896,-500.0,0.00038356,9]
[355451002,1741179036906,-500.0,0.00038356,9]
[355451003,1741179036915,-500.0,0.00038356,9]
[355451004,1741179036925,-500.0,0.00038356,9]
[355451005,1741179036934,-500.0,0.00038356,9]
[355451006,1741179036944,-500.0,0.00038356,9]
[355451007,1741179036953,-500.0,0.00038356,9]
[355451008,1741179036963,-500.0,0.00038356,9]
[355451009,1741179036972,-500.0,0.00038356,9]
[355451010,1741179036981,-500.0,0.00038356,9]
[355451011,1741179036991,-508.89292546,0.00038356,9]
[355451012,1741179037000,-826.7833384,0.00038356,88]
[355451013,1741179037010,-1188.96,0.00038356,9]
[355451014,1741179037019,-500.0,0.00038356,9]
[355451015,1741179037029,-500.0,0.00038356,9]
[355451016,1741179037039,-500.0,0.00038356,9]
[355451017,1741179037049,-500.0,0.00038356,9]
[355451018,1741179037059,-500.0,0.00038356,9]
[355451019,1741179037071,-502.68,0.00038356,9]
[355451020,1741179037080,-500.0,0.00038356,9]
[355451021,1741179037090,-500.0,0.00038356,9]
[355451022,1741179037100,-500.0,0.00038356,9]
[355451023,1741179037110,-732.9,0.00038356,9]
[355451024,1741179037120,-902.88,0.00038356,9]
[355451025,1741179037130,-500.0,0.00038356,9]
[355451026,1741179037141,-500.0,0.00038356,9]
[355451027,1741179037150,-500.0,0.00038356,9]
[355451028,1741179037160,-500.0,0.00038356,9]
[355451029,1741179037171,-500.0,0.00038356,9]
[355451030,1741179037187,-500.0,0.00038356,9]
[355451031,1741179037199,-500.0,0.00038356,9]
[355451032,1741179037209,-500.0,0.00038356,9]
[355451033,1741179037219,-500.0,0.00038356,9]
[355451034,1741179037231,-714.78,0.00038356,9]
[355451035,1741179037240,-500.0,0.00038356,9]
[355451036,1741179037250,-500.0,0.00038356,9]
[355451037,1741179037260,-500.0,0.00038356,9]
[355451038,1741179037269,-500.0,0.00038356,9]
[355451039,1741179037279,-500.0,0.00038356,9]
[355451040,1741179037288,-500.0,0.00038356,9]
[355451041,1741179037298,-500.0,0.00038356,9]
[355451042,1741179037307,-500.0,0.00038356,9]
[355451043,1741179037318,-905.38,0.00038356,9]
[355451044,1741179037328,-500.0,0.00038356,9]
[355451045,1741179037338,-500.0,0.00038356,9]
[355451046,1741179037347,-500.0,0.00038356,9]
[355451047,1741179037358,-500.0,0.00038356,9]
[355451048,1741179037369,-500.0,0.00038356,9]
[355451049,1741179037379,-500.0,0.00038356,9]
[355451050,1741179037389,-500.0,0.00038356,9]
[355451051,1741179037398,-714.17,0.00038356,9]
[355451052,1741179037408,-711.42,0.00038356,9]
[355451053,1741179037419,-500.0,0.00038356,9]
[355451054,1741179037429,-500.0,0.00038356,9]
[355451055,1741179037438,-500.0,0.00038356,9]
[355451056,1741179037448,-500.0,0.00038356,9]
[355451057,1741179037458,-507.23,0.00038356,9]
[355451058,1741179037468,-500.0,0.00038356,9]
[355451059,1741179037478,-500.0,0.00038356,9]
[355451060,1741179037488,-500.0,0.00038356,9]
[355451061,1741179037498,-500.0,0.00038356,9]
[355451062,1741179037508,-500.0,0.00038356,9]
[355451063,1741179037518,-500.0,0.00038356,9]
[355451064,1741179037528,-500.0,0.00038356,9]
[355451065,1741179037538,-500.0,0.00038356,9]
[355451066,1741179037548,-500.0,0.00038356,9]
[355451067,1741179037558,-500.0,0.00038356,9]
[355451068,1741179037570,-500.0,0.00038356,9]
[355451069,1741179037580,-500.0,0.00038356,9]
[355451070,1741179037590,-500.0,0.00038356,9]
[355451071,1741179037601,-500.0,0.00038356,9]
[355451072,1741179037611,-500.0,0.00038356,9]